Workbook

Sheet Formulier
B1: Rekenmodel bij het convenant "Landelijke normering Lichtmastschaden" 2024 versie 3.11.0
B3: Claim | I3: Opties
C4: Claimant naam | K4: Verkeerstechnisch veiligstellen
C5: Claimt namens | K5: Af-/aansluiten netbeheerder
C6: Kenmerk van claimant | K6: Netbeheerder
C7: Object eigenaar | K7: Inspecteur
C8: Datum schade | K8: Verkeersmaatregelen
C9: Locatie | K9: WION procedure (KLIC)
K10: Vervuilde Grond Procedure
C11: Activiteit
K12: =OpmerkingBORange -> 
B13: Lichtmast
C14: Nummer / kenmerk
C15: Hoogte lichtpunt (meter)
C16: Model
C17: Materiaal | I17: Bijzonderheden
C18: Coating | J18: Toelichting
C19: Uithouder(s)
C20: Terugplaatsen/vervangen borden
B22: Armatuur | L22: Prijs
C23: Merk en type | J23: =IF(PrijsBijzonderheden > 0,"Specificeer deze post nader in een aparte bijlage.","") -> 
C24: Model categorie
C25: Lichtsoort
C26: =PromptVermLumen -> Lichtstroom (lm) | I26: Calculatie
C27: Aantal armaturen te vervangen | J27: Veiligstellen | M27: =VeiligstellenInclusief -> 138.013418
J28: Schadeherstel | M28: =SchadeherstelInclusief -> 225.8401385
B29: Electronica | J29: Schadevaststelling | M29: =SchadevaststellingInclusief -> 180.6721108
C30: Soort | J30: Verkeersmaatregelen | M30: =VerkeersmaatregelenInclusief -> 0
J31: Materiaal | M31: =MateriaalInclusief -> 41.15897696
J32: Netbeheerder | M32: =NetbeheerderInclusief -> 0
J33: Overige | M33: =OverigeInclusief -> 0
J34: totaal | M34: =SUM(M27:M33) -> 585.6846443
B35: Standaard output map
B36: Invoerscherm
U50: =IF(PrijsBijzonderheden > 0,"Specificeer deze post nader in een aparte bijlage.","") -> 

Sheet Stuf voor UI (hidden)
B1: Masten | J1: Armaturen
B2: Lengte | C2: Hoogtecategorie | D2: Materiaal | E2: Model | F2: Coating | G2: Uithouder | H2: Uitzetter opties | J2: Armatuurtype | K2: Lichtsoort | L2: Vermogens conventioneel | M2: Lichtstroom LED | N2: Opties | O2: Prompt Vermoden / Lichtstroom | Q2: Activiteit | R2: Partij | S2: Inspecteur | T2: Verkeersmaatregelen | U2: Verkeersmaatregelen Opties | V2: Bebording | W2: Bebording Opties | X2: Afkoppelen | Y2: Afkoppelen Opties | Z2: WION | AA2: WION Opties | AB2: Veiligstellen | AC2: Veiligstellen Opties | AD2: Netbeheerder | AE2: Vervuilde Grond | AF2: VervuildeGrond Opties | AG2: Aantal armaturen vervangen | AH2: Aantal armaturen numeriek | AI2: UserInterface | AJ2: Electronica | AL2: Opmerking Botsabsorber | AM2: Opmerking vervuilde Grond Procedure
A3: 1 | B3: < 5 | C3: 1 | D3: Aluminium | E3: Historisch | F3: Nee | G3: =IF(MastModelKeus=3,H3,"") ->  | H3: Enkel kort < 1,5 m | J3: =Armaturen!B6 -> Paaltop functioneel | K3: Conventioneel | L3: ? | M3: ? | N3: ? | Q3: Mast Rechtzetten | R3: Provincie | S3: Niet van toepassing | T3: =IF(IsOptieActiewagen,U3,"") -> Niet van toepassing | U3: Niet van toepassing | V3: =IF(IsOptieBorden,W3,"") ->  | W3: Niet van toepassing | X3: =IF(IsOptieAfkoppelen,Y3,"") ->  | Y3: Niet van toepassing | Z3: =IF(IsOptieWION,AA3,"") ->  | AA3: Niet van toepassing | AB3: =IF(IsOptieVeiligstellen,AC3,"") -> Niet van toepassing | AC3: Niet van toepassing | AD3: =IF(AND(IsOptieAfkoppelen,Afkoppelkeus>1),INDEX(Netbeheerders,1),"") ->  | AE3: =IF(IsOptieVervuildeGrond,AF3,"") ->  | AF3: Niet van toepassing | AG3: =IF(OR(ActiviteitKeus=1,ActiviteitKeus=4),"",1) -> 1 | AH3: =IF(OR(ActiviteitKeus=1,ActiviteitKeus=4),0,1) -> 1 | AI3: Classic | AJ3: Niet van Toepassing | AL3: Bij claimen van een botsabsorber is een foto van de genomen verkeersmaatregelen (inclusief botsabsorber) en/of andere bewijsmaterialen vereist. | AM3: De kosten van een Vervuilde Grond Procedure dienen separaat geclaimd te worden.
A4: 2 | B4: 5 | C4: 2 | D4: Staal | E4: Paaltop | F4: Ja | G4: =IF(MastModelKeus=3,H4,"") ->  | H4: Enkel Lang > 1,5 m | J4: =Armaturen!B7 -> Paaltop decoratief | K4: LED | L4: =Armaturen!C$5 -> 24-26 W | M4: =Armaturen!C$15 -> 1000-2000 | N4: =IF((LichtsoortKeus=1),L4,M4) -> 1000-2000 | Q4: Rechtzetten + Armatuur vervangen | R4: Gemeente | S4: =IF(PartijKeus<3,"Ja","Nee") -> Ja | T4: =IF(OR(IsOptieVMGemeenteweg,IsOptieVMProvincieweg),U4,"") -> Standaard | U4: Standaard | W4: 1 Statisch bord | X4: =IF(IsOptieAfkoppelen,Y4,"") ->  | Y4: 1 gang | Z4: =IF(IsOptieWION,AA4,"") ->  | AA4: Ja | AB4: =IF(IsOptieVeiligstellen,AC4,"") -> Gecombineerd met herstel | AC4: Gecombineerd met herstel | AD4: =IF(AND(IsOptieAfkoppelen,Afkoppelkeus>1),INDEX(Netbeheerders,2),"") ->  | AE4: =IF(IsOptieVervuildeGrond,AF4,"") ->  | AF4: Quick Scan | AG4: =IF(OR(ActiviteitKeus=1,ActiviteitKeus=4),"",IF(UithouderKeus>2,2,"")) ->  | AH4: =IF(OR(ActiviteitKeus=1,ActiviteitKeus=4),0,IF(UithouderKeus>2,2,0)) -> 0 | AI4: Userform | AJ4: =IF(IsOptieElectronica,"Online connectiviteit","") -> Online connectiviteit | AL4: Bij claimen van Bijzondere Verkeersmaatregelen zijn specificatie en foto's vereist.
A5: 3 | B5: 6 | C5: 2 | D5: Gietijzer | E5: Uithouder | G5: =IF(MastModelKeus=3,H5,"") ->  | H5: Dubbel kort < 1,5 m | J5: =Armaturen!B8 -> Koffer functioneel | L5: =Armaturen!D$5 -> 32-42 W | M5: =Armaturen!D$15 -> 2000-4000 | N5: =IF((LichtsoortKeus=1),L5,M5) -> 2000-4000 | Q5: Armatuur vervangen | R5: Aannemer | T5: =IF(IsOptieActiewagen,U5,"") -> Actiewagen | U5: Actiewagen | W5: 2 Statische borden | X5: =IF(IsOptieAfkoppelen,Y5,"") ->  | Y5: 2 gangen | AB5: =IF(IsOptieVeiligstellen,AC5,"") -> Los van herstel | AC5: Los van herstel | AD5: =IF(AND(IsOptieAfkoppelen,Afkoppelkeus>1),INDEX(Netbeheerders,3),"") ->  | AE5: =IF(IsOptieVervuildeGrond,AF5,"") ->  | AF5: Procedure incl. Quick Scan | AG5: =IF(UithouderKeus > 2,AK5,"") ->  | AJ5: =IF(IsOptieElectronica,"Online connectiviteit + sensor","") -> Online connectiviteit + sensor | AM5: 94109
A6: 4 | B6: 7 | C6: 2 | E6: Design | G6: =IF(MastModelKeus=3,H6,"") ->  | H6: Dubbel Lang > 1,5 m | J6: =Armaturen!B9 -> Koffer decoratief | K6: LED_max | L6: =Armaturen!E$5 -> 50-70 W | M6: =Armaturen!E$15 -> 4000-6000 | N6: =IF((LichtsoortKeus=1),L6,M6) -> 4000-6000 | Q6: Mast vervangen | T6: =IF(IsOptieBotsabsorber,U6,"") -> Botsabsorber | U6: Botsabsorber | W6: 3 Statische borden | AD6: =IF(AND(IsOptieAfkoppelen,Afkoppelkeus>1),INDEX(Netbeheerders,4),"") ->  | AM6: =IF(VervuildeGrondKeus=3,AM3,"") ->  | AO6: 93963
A7: 5 | B7: 8 | C7: 3 | J7: =Armaturen!B10 -> Design | K7: =IF(ArmatuurModelKeus<3,3,IF(ArmatuurModelKeus=3,4,IF(ArmatuurModelKeus=6,4,5))) -> 3 | L7: =Armaturen!F$5 -> 100-150 W | M7: =Armaturen!F$15 -> 6000-8000 | N7: =IF((LichtsoortKeus=1),L7,IF(LED_max>3,M7," ")) ->  | Q7: Mast en Armatuur vervangen | T7: =IF(AND(IsOptieActiewagen,IsOptieBotsabsorber),U7,"") -> Botsabsorber + Actiewagen | U7: Botsabsorber + Actiewagen | W7: Dynamische borden | AD7: =IF(AND(IsOptieAfkoppelen,Afkoppelkeus>1),INDEX(Netbeheerders,5),"") ->  | AM7: =IF(OR(VerkeersmaatregelKeus=4,VerkeersmaatregelKeus=5),AL3,IF(VerkeersmaatregelKeus=7,AL4,"")) -> 
A8: 6 | B8: 9 | C8: 3 | J8: =Armaturen!B11 -> Historisch | L8: =Armaturen!G$5 -> 250-400 W | M8: =Armaturen!G$15 -> > 8000 | N8: =IF((LichtsoortKeus=1),L8,IF(LED_max=5,M8," ")) ->  | T8: =IF(IsOptieVerkeersregelaars,U8,"") -> Inzet Verkeersregelaars | U8: Inzet Verkeersregelaars | W8: Statische en dynamische borden | AD8: =IF(AND(IsOptieAfkoppelen,Afkoppelkeus>1),INDEX(Netbeheerders,6),"") -> 
A9: 7 | B9: 10 | C9: 4 | T9: =IF(IsOptieBijzVerkMaatr,U9,"") ->  | U9: Bijzondere verkeersmaatregelen | AD9: =IF(AND(IsOptieAfkoppelen,Afkoppelkeus>1),INDEX(Netbeheerders,7),"") -> 
A10: 8 | B10: 11 | C10: 4 | AD10: =IF(AND(IsOptieAfkoppelen,Afkoppelkeus>1),INDEX(Netbeheerders,8),"") -> 
A11: 9 | B11: >11 | C11: 5
G13: 1 | T13: 1 | V13: 1 | X13: 1 | Z13: 1 | AB13: 1 | AD13: 1 | AE13: 1 | AH13: =IF(AH4>0,2,IF(AH3>0,1,0)) -> 1
B14: 2 | C14: =INDEX(MasthoogtenRange, Lengtekeus, 2) -> 2 | G14: =MAX(UithouderKeusTmp,1) -> 1 | L14: Keus | M14: Default | N14: Vermogen | T14: =MAX(UKVerkeersmaatregel,1) -> 1 | V14: =MAX(UKBebording,1) -> 1 | X14: =MAX(UKAfkoppelen,1) -> 1 | Z14: =MAX(UKWION,1) -> 1 | AB14: =MAX(UKVeiligstellen,1) -> 1 | AD14: =MAX(UKNetbeheerder,1) -> 1 | AE14: =MAX(UKVervGrond,1) -> 1 | AH14: 1 | AI14: 1
A15: Gekozen: | B15: =C14 -> 2 | D15: 1 | E15: 2 | F15: 1 | G15: =IF(MastModelKeus=3,G14,1) -> 1 | J15: 1 | K15: 2 | L15: 6 | M15: =HoogteKeus -> 2 | N15: =IF(VermogenKeus=1,VermogenDefault,VermogenKeus-1) -> 5 | O15: =IF(LichtsoortKeus=1,"Vermogen (W)",IF(LichtsoortKeus=2,"Lichtstroom (lm)"," ")) -> Lichtstroom (lm) | Q15: 2 | R15: 2 | S15: 1 | T15: =IF(INDEX(VerkeersmaatregelRange,T14,) > "",T14, 1) -> 1 | V15: =IF(INDEX(BebordingRange,V14,) > "",V14, 1) -> 1 | X15: =IF(INDEX(AfkoppelenRange,X14,) > "",X14, 1) -> 1 | Z15: =IF(INDEX(WIONRange,Z14,) > "",Z14, 1) -> 1 | AB15: =IF(INDEX(VeiligstellenRange,AB14,) > "",AB14, 1) -> 1 | AC15: =ROUND(SUM(Activiteiten!C8:K55)+SUM(Activiteiten!M8:Q29)+SUM(Activiteiten!M33:Q33)+SUM(Activiteiten!M39:Q48) +SUM(Activiteiten!M54:Q55)+SUM(ArrayBorden) +SUM(EengangRange) +SUM(TweegangRange)+SUM(ArrayMasten)+SUM(ArrayCoating)+SUM(ArrayUithouders)+SUM(Armaturen!C6:G11)+SUM(Armaturen!C16:G21),0) -> 94109 | AD15: =IF(INDEX(Netbeheerders,AD14,) > "",AD14, 1) -> 1 | AE15: =IF(INDEX(VervuildeGrondRange,AE14,) > "",AE14, 1) -> 1 | AH15: =MIN(AantalArmaturenDefault,UKAantalArmaturen) -> 1 | AI15: 1 | AJ15: 1
A17: Verwerking | C17: 1
Q18: 0
J27: Groene velden | L27: beveiligen tegen 0 waarden vanuit het userform
A32: Om te schakelen tussen 'Classic' en 'Userform' | E32: Classic | F32: Userform
A33: PrijsBijz | B33: =IF(UserInterfaceKeus=1,PrijsBijzClassic,PrijsBijzUserform) -> 0 | E33: =PrijsBijzonderheden -> 0 | F33: 0
A34: rDefOutputfolder | B34: =IF(UserInterfaceKeus=1,E34,F34) -> StandaardOutputFolder | E34: StandaardOutputFolder | F34: DefaultOutputFolder
A35: rKenmerkVeld | B35: =IF(UserInterfaceKeus=1,E35,F35) -> ClaimnummerRange | E35: ClaimnummerRange | F35: OpKenmerk
A36: rArmatuurKenmerk | B36: =IF(UserInterfaceKeus=1,E36,F36) -> ArmatuurMerkTypeRange | E36: ArmatuurMerkTypeRange | F36: OpArmatuurMerk
A37: rOutputWorksheet | B37: =IF(UserInterfaceKeus=1,E37,F37) -> Output | E37: Output | F37: Output

Sheet Activiteiten (hidden)
B1: kolomnummer | C1: 3 | D1: 4 | E1: 5 | F1: 6 | G1: 7 | H1: 8 | I1: 9 | J1: 10 | K1: 11 | L1: 10 | M1: 13 | N1: 14 | O1: 15 | P1: 16 | Q1: 17
B2: categorie | C2: 1 | D2: 2 | E2: 3 | F2: 4 | G2: 5 | H2: 1 | I2: 2 | J2: 3 | K2: 4 | M2: 1 | N2: 2 | O2: 3 | P2: 4 | Q2: 5
C3: Rechtzetten | D3: Rechtzetten & Arm. Wisselen | E3: Armatuur wisselen | F3: Mast wisselen | G3: Mast en Arm. wisselen | H3: Provincie | I3: Gemeente | J3: Aannemer | K3: Toekomst | T3: Activiteit | U3: Partij | V3: Is Optie Ja/Nee | W3: Keuze: Ja/Nee | X3: Tarief
A4: Hoofdindeling | B4: Component | M4: <5 | N4: 5, 6, 7 | O4: 8, 9 | P4: 10, 11 | Q4: > 11 | AD4: Waarde | AE4: Kolom
AC5: Act | AD5: =IF(VerwerkingKeus=1,ActiviteitKeus,ActiviteitKoppeling) -> 2 | AE5: =Act+2 -> 4
A6: Vaste kosten | AC6: Partij | AD6: =IF(VerwerkingKeus=1,PartijKeus,PartijKoppeling) -> 2 | AE6: =Partij+7 -> 9
A7: Veiligstellen | AC7: Hoogte | AD7: =IF(VerwerkingKeus=1,HoogteKeus,HoogteKoppeling) -> 2 | AE7: =Hoogte+12 -> 14
A8: Veiligstellen | B8: Intake en administratieve verwerking door de gemeente | C8: 1 | D8: 1 | E8: 1 | F8: 1 | G8: 1 | H8: 1 | I8: 1 | M8: 20 | N8: 20 | O8: 20 | P8: 20 | Q8: 20 | T8: =IF(ISBLANK(INDEX(ArrayActiviteiten,ROW(),ColAct)),0,1) -> 1 | U8: =IF(ISBLANK(INDEX(ArrayActiviteiten,ROW(),ColPartij)),0,1) -> 1 | X8: =T8*U8*INDEX(ArrayActiviteiten,ROW(),ColHoogte) -> 20
A9: Veiligstellen | B9: Intake en administratieve verwerking door de aannemer | C9: 1 | D9: 1 | E9: 1 | F9: 1 | G9: 1 | H9: 1 | I9: 1 | J9: 1 | M9: 15 | N9: 15 | O9: 15 | P9: 15 | Q9: 15 | T9: 1 | U9: 1 | X9: 15
A10: Veiligstellen | B10: Aanrijkosten aannemer | C10: 1 | D10: 1 | E10: 1 | F10: 1 | G10: 1 | H10: 1 | I10: 1 | J10: 1 | M10: 70 | N10: 70 | O10: 70 | P10: 70 | Q10: 70 | T10: 1 | U10: 1 | X10: 70
A11: Veiligstellen | B11: Fotografisch vastleggen van de schade en invullen schadeopnameformulier | C11: 1 | D11: 1 | E11: 1 | F11: 1 | G11: 1 | H11: 1 | I11: 1 | J11: 1 | M11: 5 | N11: 5 | O11: 5 | P11: 5 | Q11: 5 | T11: 1 | U11: 1 | X11: 5
A12: Veiligstellen | B12: Verkeerstechnisch veiligstellen | D12: 1 | E12: 1 | F12: 1 | G12: 1 | H12: 1 | I12: 1 | J12: 1 | M12: 40 | N12: 45 | O12: 50 | P12: 55 | Q12: 65 | T12: 1 | U12: 1 | V12: =T12*U12 -> 1 | W12: =MAX(VeiligstellenKeus -2,0) -> 0 | X12: =IsOptieVeiligstellen*W12*INDEX(ArrayActiviteiten,ROW(),ColHoogte) -> 0 | Z12: Alleen van toepassing als optie 'Los van herstel' gekozen is
A13: Veiligstellen | B13: Elektrisch veiligstellen | F13: 1 | G13: 1 | H13: 1 | I13: 1 | J13: 1 | M13: 25 | N13: 25 | O13: 25 | P13: 25 | Q13: 25 | T13: 0 | U13: 1 | V13: =T13*U13 -> 0 | X13: =IsOptieVeiligstellen*V13*W12*INDEX(ArrayActiviteiten,ROW(),ColHoogte) -> 0 | Z13: Is afhankelijk van al dan niet verkeerstechnisch veiligstellen
S14: =A7 -> Veiligstellen | Y14: =SUM(X8:X14) -> 110
A15: Schadeherstel
A16: Schadeherstel | B16: Technisch werkvoorbereiding door aannemer | D16: 1 | E16: 1 | F16: 1 | G16: 1 | H16: 1 | I16: 1 | J16: 1 | M16: 45 | N16: 45 | O16: 45 | P16: 45 | Q16: 45 | T16: =IF(ISBLANK(INDEX(ArrayActiviteiten,ROW(),ColAct)),0,1) -> 1 | U16: =IF(ISBLANK(INDEX(ArrayActiviteiten,ROW(),ColPartij)),0,1) -> 1 | X16: =T16*U16*INDEX(ArrayActiviteiten,ROW(),ColHoogte) -> 45
A17: Schadeherstel | B17: Ter plaatse gaan van personeel en materiaal | C17: 1 | D17: 1 | E17: 1 | F17: 1 | G17: 1 | H17: 1 | I17: 1 | J17: 1 | M17: 60 | N17: 60 | O17: 60 | P17: 60 | Q17: 60 | T17: 1 | U17: 1 | X17: 60
A18: Schadeherstel | B18: Openbreken van de bodembedekking | F18: 1 | G18: 1 | H18: 1 | I18: 1 | J18: 1 | M18: 5 | N18: 5 | O18: 5 | P18: 5 | Q18: 5 | T18: 0 | U18: 1 | X18: 0
A19: Schadeherstel | B19: Rechtzetten mast | C19: 1 | D19: 1 | H19: 1 | I19: 1 | J19: 1 | M19: 25 | N19: 50 | O19: 75 | P19: 100 | Q19: 125 | T19: 1 | U19: 1 | X19: 50
A20: Schadeherstel | B20: Verwijderen lichtmast | F20: 1 | G20: 1 | H20: 1 | I20: 1 | J20: 1 | M20: 20 | N20: 25 | O20: 30 | P20: 50 | Q20: 75 | T20: 0 | U20: 1 | X20: 0
A21: Schadeherstel | B21: Monteren of overzetten lamp en armatuur | D21: 1 | E21: 1 | F21: 1 | G21: 1 | H21: 1 | I21: 1 | J21: 1 | M21: 25 | N21: 25 | O21: 25 | P21: 25 | Q21: 25 | T21: 1 | U21: 1 | X21: 25
A22: Sohadeherstel | B22: Plaatsen van de lichtmast | F22: 1 | G22: 1 | H22: 1 | I22: 1 | J22: 1 | M22: 40 | N22: 60 | O22: 75 | P22: 125 | Q22: 125 | T22: 0 | U22: 1 | X22: 0
A23: Schadeherstel | B23: Monteren bedrading | F23: 1 | G23: 1 | H23: 1 | I23: 1 | J23: 1 | M23: 15 | N23: 15 | O23: 15 | P23: 15 | Q23: 15 | T23: 0 | U23: 1 | X23: 0
A24: Schadeherstel | B24: Afvullen van de lichtmast met zand onder het zekeringluik | F24: 1 | G24: 1 | H24: 1 | I24: 1 | J24: 1 | M24: 5 | N24: 5 | O24: 5 | P24: 5 | Q24: 5 | T24: 0 | U24: 1 | X24: 0
A25: Schadeherstel | B25: Aanbrengen objectnummer | F25: 1 | G25: 1 | H25: 1 | I25: 1 | J25: 1 | M25: 5 | N25: 5 | O25: 5 | P25: 5 | Q25: 5 | T25: 0 | U25: 1 | X25: 0
A26: Schadeherstel | B26: Afvoeren van beschadigd materiaal | F26: 1 | G26: 1 | H26: 1 | I26: 1 | J26: 1 | M26: 20 | N26: 20 | O26: 30 | P26: 40 | Q26: 50 | T26: 0 | U26: 1 | X26: 0
A27: Schadeherstel | B27: Muteren beheerbestand gemeente | E27: 1 | F27: 1 | G27: 1 | H27: 1 | I27: 1 | J27: 1 | M27: 15 | N27: 15 | O27: 15 | P27: 15 | Q27: 15 | T27: 0 | U27: 1 | X27: 0
A28: Schadeherstel | B28: Opzichter gemeente/directievoerder checkt uitvoering werkzaamheden | D28: 1 | E28: 1 | F28: 1 | G28: 1 | I28: 1 | M28: 25 | N28: 25 | O28: 25 | P28: 25 | Q28: 25 | T28: 1 | U28: 1 | W28: =IF(VerwerkingKeus=1,InspecteurKeus-1,0) -> 0 | X28: =T28*U28*W28*INDEX(ArrayActiviteiten,ROW(),ColHoogte) -> 0
A29: Schadeherstel | B29: Inspecteur provinciale weg (Kantonier) | C29: 1 | D29: 1 | E29: 1 | F29: 1 | G29: 1 | H29: 1 | M29: 100 | N29: 100 | O29: 100 | P29: 100 | Q29: 100 | T29: 1 | U29: 0 | W29: =IF(VerwerkingKeus=1,InspecteurKeus-1,0) -> 0 | X29: =T29*U29*W29*INDEX(ArrayActiviteiten,ROW(),ColHoogte) -> 0
A30: Schadeherstel | B30: Terugplaatsen of vervangen van bebording aan lichtmast | F30: 1 | G30: 1 | H30: 1 | I30: 1 | J30: 1 | M30: =IsOptieBorden*INDEX(ArrayBorden,BebordingKeus) -> 0 | T30: 0 | U30: 1 | V30: =T30*U30 -> 0 | X30: =M30 -> 0
S31: =A15 -> Schadeherstel | Y31: =SUM(X16:X31) -> 180
A32: Schadevaststelling
A33: Schadevaststellingskosten | B33: Vaste post schadevaststelling | C33: 1 | D33: 1 | E33: 1 | F33: 1 | G33: 1 | H33: 1 | I33: 1 | J33: 1 | M33: 144 | N33: 144 | O33: 144 | P33: 144 | Q33: 144 | T33: =IF(ISBLANK(INDEX(ArrayActiviteiten,ROW(),ColAct)),0,1) -> 1 | U33: =IF(ISBLANK(INDEX(ArrayActiviteiten,ROW(),ColPartij)),0,1) -> 1 | W33: FALSE | X33: =T33*U33*INDEX(ArrayActiviteiten,ROW(),ColHoogte) -> 144
S34: =A32 -> Schadevaststelling | Y34: =SUM(X33:X34) -> 144
A35: Materiaal
A36: Levering Materiaal | B36: Lichtmast | F36: 1 | G36: 1 | H36: 1 | I36: 1 | J36: 1 | M36: =Totaal_Mast -> 0 | T36: =IF(ISBLANK(INDEX(ArrayActiviteiten,ROW(),ColAct)),0,1) -> 0 | U36: =IF(ISBLANK(INDEX(ArrayActiviteiten,ROW(),ColPartij)),0,1) -> 1 | X36: =T36*U36*M36 -> 0
A37: Levering Materiaal | B37: Armatuur (inclusief verwijderingsbijdrage) | D37: 1 | E37: 1 | G37: 1 | H37: 1 | I37: 1 | J37: 1 | M37: =Totaal_Armatuur -> 0 | T37: =IF(ISBLANK(INDEX(ArrayActiviteiten,ROW(),ColAct)),0,1) -> 1 | U37: =IF(ISBLANK(INDEX(ArrayActiviteiten,ROW(),ColPartij)),0,1) -> 1 | X37: =T37*U37*M37 -> 0
A38: Levering Materiaal | B38: Electronica | D38: 1 | E38: 1 | F38: 1 | G38: 1 | H38: 1 | I38: 1 | J38: 1 | M38: =Totaal_Electronica -> 0 | T38: =IF(ISBLANK(INDEX(ArrayActiviteiten,ROW(),ColAct)),0,1) -> 1 | U38: =IF(ISBLANK(INDEX(ArrayActiviteiten,ROW(),ColPartij)),0,1) -> 1 | X38: =T38*U38*M38 -> 0
A39: Vast materiaal | B39: Aansluitkast | F39: 1 | G39: 1 | H39: 1 | I39: 1 | J39: 1 | M39: 40 | N39: 40 | O39: 40 | P39: 40 | Q39: 40 | T39: =IF(ISBLANK(INDEX(ArrayActiviteiten,ROW(),ColAct)),0,1) -> 0 | U39: =IF(ISBLANK(INDEX(ArrayActiviteiten,ROW(),ColPartij)),0,1) -> 1 | X39: =T39*U39*INDEX(ArrayActiviteiten,ROW(),ColHoogte) -> 0
A40: Vast materiaal | B40: Klein materiaal | D40: 1 | E40: 1 | F40: 1 | G40: 1 | H40: 1 | I40: 1 | J40: 1 | M40: 30 | N40: 30 | O40: 30 | P40: 30 | Q40: 30 | T40: =IF(ISBLANK(INDEX(ArrayActiviteiten,ROW(),ColAct)),0,1) -> 1 | U40: =IF(ISBLANK(INDEX(ArrayActiviteiten,ROW(),ColPartij)),0,1) -> 1 | X40: =T40*U40*INDEX(ArrayActiviteiten,ROW(),ColHoogte) -> 30
S41: =A35 -> Materiaal | Y41: =SUM(X36:X41) -> 30
A42: Verkeersmaatregelen
A43: Veiligstellen en herstel | B43: Verkeersmaatregelen gemeenteweg | D43: 1 | E43: 1 | F43: 1 | G43: 1 | I43: 1 | J43: 1 | N43: 60 | O43: 60 | P43: 60 | Q43: 60 | T43: =IF(ISBLANK(INDEX(ArrayActiviteiten,ROW(),ColAct)),0,1) -> 1 | U43: =IF(ISBLANK(INDEX(ArrayActiviteiten,ROW(),ColPartij)),0,1) -> 1 | V43: =IF(ISBLANK(INDEX(ArrayActiviteiten,ROW(),ColHoogte)),0,T43*U43) -> 1 | W43: =IF(VerkeersmaatregelKeus>1,1,0) -> 0 | X43: =IsOptieVMGemeenteweg*W43*INDEX(ArrayActiviteiten,ROW(),ColHoogte) -> 0
A44: Veiligstellen en herstel | B44: Verkeersmaatregelen provinciale weg | C44: 1 | D44: 1 | E44: 1 | F44: 1 | G44: 1 | H44: 1 | N44: 100 | O44: 100 | P44: 100 | Q44: 100 | T44: 1 | U44: 0 | V44: 0 | W44: =IF(VerkeersmaatregelKeus>1,1,0) -> 0 | X44: =IsOptieVMProvincieweg*W44*INDEX(ArrayActiviteiten,ROW(),ColHoogte) -> 0
A45: Veiligstellen en herstel | B45: Inzet Actiewagen | C45: 1 | D45: 1 | E45: 1 | F45: 1 | G45: 1 | H45: 1 | I45: 1 | J45: 1 | M45: 100 | N45: 100 | O45: 100 | P45: 100 | Q45: 100 | T45: 1 | U45: 1 | V45: 1 | W45: =IF(OR(VerkeersmaatregelKeus=3, VerkeersmaatregelKeus=5),1,0) -> 0 | X45: =IsOptieActiewagen*W45*INDEX(ArrayActiviteiten,ROW(),ColHoogte) -> 0
A46: Veiligstellen en herstel | B46: Inzet Botsabsorber | D46: 1 | E46: 1 | F46: 1 | G46: 1 | H46: 1 | I46: 1 | J46: 1 | N46: 450 | O46: 450 | P46: 450 | Q46: 450 | T46: 1 | U46: 1 | V46: 1 | W46: =IF(OR(VerkeersmaatregelKeus=4, VerkeersmaatregelKeus=5),1,0) -> 0 | X46: =IsOptieBotsabsorber*W46*INDEX(ArrayActiviteiten,ROW(),ColHoogte) -> 0
A47: Veiligstellen en herstel | B47: Inzet Verkeersregelaars | C47: 1 | D47: 1 | E47: 1 | F47: 1 | G47: 1 | H47: 1 | I47: 1 | J47: 1 | M47: 100 | N47: 100 | O47: 100 | P47: 100 | Q47: 100 | T47: 1 | U47: 1 | V47: 1 | W47: =IF(VerkeersmaatregelKeus=6,1,0) -> 0 | X47: =IsOptieVerkeersregelaars*W47*INDEX(ArrayActiviteiten,ROW(),ColHoogte) -> 0
A48: Veiligstellen en herstel | B48: Bijzondere verkeersmaatregelen | C48: 1 | D48: 1 | E48: 1 | F48: 1 | G48: 1 | H48: 1 | M48: 900 | N48: 900 | O48: 900 | P48: 900 | Q48: 900 | T48: 1 | U48: 0 | V48: 0 | W48: =IF(VerkeersmaatregelKeus=7,1,0) -> 0 | X48: =IsOptieBijzVerkMaatr*W48*INDEX(ArrayActiviteiten,ROW(),ColHoogte) -> 0
S49: =A42 -> Verkeersmaatregelen | Y49: =SUM(X43:X49) -> 0
A50: Netbeheerder
A51: Schadeherstel | B51: Af - en aansluiten netwerk | F51: 1 | G51: 1 | H51: 1 | I51: 1 | J51: 1 | M51: =NetbeheerTarief -> 0 | T51: =IF(ISBLANK(INDEX(ArrayActiviteiten,ROW(),ColAct)),0,1) -> 0 | U51: =IF(ISBLANK(INDEX(ArrayActiviteiten,ROW(),ColPartij)),0,1) -> 1 | V51: =T51*U51 -> 0 | X51: =IsOptieAfkoppelen*NetbeheerTarief -> 0
S52: =A50 -> Netbeheerder | Y52: =SUM(X51:X52) -> 0
A53: Bijzondere kosten
A54: Heraansluiting | B54: Kosten meldingsprocedure netwerkbeheerder WION (Klic melding) | F54: 1 | G54: 1 | H54: 1 | I54: 1 | J54: 1 | M54: =45*IndexArbeid -> 56.46003464 | N54: 56.46003464 | O54: 56.46003464 | P54: 56.46003464 | Q54: 56.46003464 | T54: =IF(ISBLANK(INDEX(ArrayActiviteiten,ROW(),ColAct)),0,1) -> 0 | U54: =IF(ISBLANK(INDEX(ArrayActiviteiten,ROW(),ColPartij)),0,1) -> 1 | V54: =T54*U54 -> 0 | W54: =MAX(WIONKeus-1,0) -> 0 | X54: =IsOptieWION*W54*INDEX(ArrayActiviteiten,ROW(),ColHoogte) -> 0
A55: Schadeherstel | B55: Vervuilde Grond procedure Quick Scan | F55: 1 | G55: 1 | H55: 1 | I55: 1 | J55: 1 | M55: 56.46003464 | N55: 56.46003464 | O55: 56.46003464 | P55: 56.46003464 | Q55: 56.46003464 | T55: =IF(ISBLANK(INDEX(ArrayActiviteiten,ROW(),ColAct)),0,1) -> 0 | U55: =IF(ISBLANK(INDEX(ArrayActiviteiten,ROW(),ColPartij)),0,1) -> 1 | V55: =T55*U55 -> 0 | W55: =IF(VervuildeGrondKeus>1,1,0) -> 0 | X55: =IsOptieVervuildeGrond*W55*INDEX(ArrayActiviteiten,ROW(),ColHoogte) -> 0
X56: =PrijsBijz -> 0
S57: =A53 -> Bijzondere kosten | Y57: =SUM(X54:X57) -> 0
S59: Totaal | Y59: =SUM(Y8:Y57) -> 464

Sheet Materiaal (hidden)
A1: Materiaal
C3: Ja/Nee | D3: Hoogte | E3: Model | F3: Materiaal | G3: Lichtsoort | H3: Lichtstroom/ Vermogen | I3: Aantal | J3: Type | K3: Kosten | L3: Totaal
B4: Mast | C4: =MastJaNee -> 0 | D4: =HoogteKeus -> 2 | E4: =MastModelKeus -> 2 | F4: =MateriaalKeus -> 1 | K4: =INDEX(ArrayMasten,MateriaalKeus,(HoogteKeus-1)*4+MastModelKeus) -> 295 | L4: =C4*K4 -> 0
B5: Coating | C5: =CoatingKeus-1 -> 0 | K5: =C5*INDEX(ArrayCoating,,HoogteKeus) -> 0 | L5: =C4*C5*K5 -> 0
B6: Uithouder | C6: =IF(MastModelKeus=3,1,0) -> 0 | E6: =UithouderKeus -> 1 | K6: =IF(UithouderKeus,INDEX(ArrayUithouders,UithouderKeus,),0) -> 75 | L6: =C4*C6*K6 -> 0 | N6: regel | O6: kolom | P6: prijs
B7: Armatuur | C7: =ArmatuurJaNee -> 1 | E7: =ArmatuurModelKeus -> 1 | G7: =LichtsoortKeus -> 2 | H7: =VermogenFinal -> 5 | I7: =AantalArmaturenKeus -> 1 | K7: =IF(C7,INDEX(ArrayArmaturen,1+(G7-1)*10+E7,H7),0) -> 0 | L7: =I7*K7 -> 0 | N7: =E7+1+(G7-1)*10 -> 12 | O7: =H7 -> 5 | P7: =INDEX(ArrayArmaturen,N7,O7) -> 0
B8: Electronica | J8: =ElectronicaKeus -> 1 | K8: =INDEX(ArrayElectronica,J8,) -> 0 | L8: =K8/1.37196589861751 -> 0
B10: Totaal Mast | C10: =SUM(L4:L6) -> 0
B11: Totaal Armatuur | C11: =L7 -> 0
B12: Totaal Electronica | C12: =L8 -> 0

Sheet Masten (hidden)
A1: Masten
A3: Hoogte categorie | E3: 1 | I3: 2 | M3: 3 | Q3: 4 | U3: 5
C4: < 5 m | G4: 5 - 7 m | K4: 8 en 9 m | O4: 9-11 m | S4: > 11 m
C5: Historisch | D5: Paaltop | E5: Uithouder | F5: Design | G5: Historisch | H5: Paaltop | I5: Uithouder | J5: Design | K5: Historisch | L5: Paaltop | M5: Uithouder | N5: Design | O5: Historisch | P5: Paaltop | Q5: Uithouder | R5: Design | S5: Historisch | T5: Paaltop | U5: Uithouder | V5: Design | AH5: X | AI5: Y
A6: 1 | B6: Alu | D6: 215 | E6: 215 | F6: 1000 | H6: 295 | I6: 295 | J6: 1200 | L6: 545 | M6: 545 | N6: 1400 | P6: 685 | Q6: 685 | R6: 1600 | T6: 985 | U6: 985 | V6: 1800 | AH6: =X_offset+(AA8-1)*4+AB8 -> -4 | AI6: =Y_offset+AC8 -> 0
A7: 2 | B7: Staal | D7: 210 | E7: 210 | F7: 1000 | H7: 300 | I7: 290 | J7: 1200 | L7: 480 | M7: 470 | N7: 1400 | P7: 625 | Q7: 610 | R7: 1600 | T7: 880 | U7: 870 | V7: 1800
A8: 3 | B8: Gietijzer | C8: 1300 | D8: 510 | E8: 510 | F8: 1000 | G8: 1800 | I8: 1500 | J8: 1200 | K8: 2000 | M8: 2000 | N8: 1400 | Q8: 2000 | R8: 1600 | V8: 1800
A10: Coating
B11: Hoogte | C11: 1 | D11: 2 | E11: 3 | F11: 4 | G11: 5
B12: Prijs | C12: 50 | D12: 75 | E12: 100 | F12: 115 | G12: 135
A14: Uithouders
A15: 1 | B15: Enkel kort | C15: 75
A16: 2 | B16: Enkel Lang | C16: 85
A17: 3 | B17: Dubbel kort | C17: 185
A18: 4 | B18: Dubbel Lang | C18: 200
A20: Borden
A21: 1 | B21: Geen | C21: 0
A22: 2 | B22: Statisch 1 | C22: 5
A23: 3 | B23: Statisch 2 | C23: 10
A24: 4 | B24: Statisch 3 | C24: 15
A25: 5 | B25: Dynamisch | C25: 10
A26: 6 | B26: Sta & Dyn | C26: 15

Sheet Armaturen (hidden)
A1: Armaturen
B3: Conventioneel
C4: 1 | D4: 2 | E4: 3 | F4: 4 | G4: 5
B5: Vermogen (W) | C5: 24-26 W | D5: 32-42 W | E5: 50-70 W | F5: 100-150 W | G5: 250-400 W
A6: 1 | B6: Paaltop functioneel | C6: 225 | D6: 280 | E6: 330 | F6: 380 | G6: 430
A7: 2 | B7: Paaltop decoratief | C7: 225 | D7: 280 | E7: 330 | F7: 380 | G7: 430 | I7: even duur als functioneel
A8: 3 | B8: Koffer functioneel | C8: 265 | D8: 280 | E8: 330 | F8: 380 | G8: 430
A9: 4 | B9: Koffer decoratief | C9: 265 | D9: 280 | E9: 330 | F9: 380 | G9: 430 | I9: even duur als functioneel
A10: 5 | B10: Design | C10: 1000 | D10: 1000 | E10: 1000 | F10: 1000 | G10: 1000
A11: 6 | B11: Historisch | C11: 850 | D11: 850 | E11: 850 | F11: 850 | G11: 850
B13: LED
C14: 1 | D14: 2 | E14: 3 | F14: 4 | G14: 5
B15: Lichtstroom (lm) | C15: 1000-2000 | D15: 2000-4000 | E15: 4000-6000 | F15: 6000-8000 | G15: > 8000
A16: 1 | B16: =B6 -> Paaltop functioneel | C16: 200 | D16: 250 | E16: 300 | F16: 0 | G16: 0 | I16: grijze velden: niet van toepassing
A17: 2 | B17: =B7 -> Paaltop decoratief | C17: 300 | D17: 350 | E17: 400 | F17: 0 | G17: 0
A18: 3 | B18: Koffer functioneel | C18: 200 | D18: 250 | E18: 300 | F18: 350 | G18: 0
A19: 4 | B19: Koffer decoratief | C19: 300 | D19: 350 | E19: 400 | F19: 450 | G19: 1100
A20: 5 | B20: Design | C20: 700 | D20: 800 | E20: 900 | F20: 1000 | G20: 1100
A21: 6 | B21: Historisch | C21: 1500 | D21: 1500 | E21: 1750 | F21: 1900 | G21: 0

Sheet Electronica (hidden)
A1: Elektronica
B3: Soort | C3: Prijs (2024)
A4: 1 | B4: =INDEX(ElectronicaRange,1,) -> Niet van Toepassing | C4: 0
A5: 2 | B5: Online connectiviteit | C5: 245
A6: 3 | B6: Online connectiviteit + sensor | C6: 265

Sheet Netbeheer (hidden)
A1: Netbeheer
B11: Datum laatste aanpassing tarieven | F11: 2024-02-19
K13: 2017 (geindexeerd)
B14: Naam | C14: 1 gang | D14: 2 gangen | F14: Gekozen Tarief | K14: Naam | L14: 1 gang | M14: 2 gangen
C15: 0 | D15: 0 | E15: 1 | F15: =IF(Afkoppelkeus=2,INDEX(EengangRange,NetbeheerderKeus),IF(Afkoppelkeus=3,INDEX(TweegangRange,NetbeheerderKeus),0)) -> 0 | L15: 0 | M15: 0
B16: Eigen net / 16C | C16: 186.7572479 | D16: 186.7572479 | E16: 2 | K16: Eigen net / 16C | L16: 128.63 | M16: 128.63
B17: Coteq Elektriciteit | C17: 344.72 | D17: 344.72 | E17: 3 | K17: Coteq Elektriciteit | L17: 344.72 | M17: 344.72
B18: Enexis | C18: 169.79 | D18: 293.17 | E18: 4 | K18: Enduris | L18: 351.92 | M18: 351.92
B19: Liander | C19: 360.09 | D19: 447.25 | E19: 5 | K19: Enexis | L19: 135.83 | M19: 164.64
B20: Rendo Netwerken | C20: 184.32 | D20: 315 | E20: 6 | K20: Liander | L20: 378.67 | M20: 652.39
B21: Stedin | C21: 255.16 | D21: 510.32 | E21: 7 | K21: Rendo Netwerken | L21: 315.9 | M21: 445.56
B22: Westland Infra | C22: 171 | D22: 304 | E22: 8 | K22: Stedin | L22: 249.02 | M22: 499.07
K23: Westland Infra | L23: 242.84 | M23: 242.84
K26: 2023
K27: Naam | L27: 1 gang | M27: 2 gangen
L28: 0 | M28: 0
K29: Eigen net / 16C | L29: 148.85 | M29: 148.85
K30: Coteq Elektriciteit | L30: 344.72 | M30: 344.72
K31: Enexis | L31: 164.84 | M31: 284.63
K32: Liander | L32: 344.44 | M32: 429.06
K33: Rendo Netwerken | L33: 184.32 | M33: 315
K34: Stedin | L34: 247.73 | M34: 495.46
K35: Westland Infra | L35: 171 | M35: 304

Sheet Indexering (hidden)
A1: Indexering
B2: Index jaar | C2: 2024 | D2: 2024 | E2: 2024 | I2: Calculatie 2024
B3: Index nummer | C3: 1 | D3: 2 | E3: 3 | F3: 4 | G3: 5 | I3: Index | J3: 2023 convenant | K3: CBS december 2022 | L3: CBS december 2023 | M3: verhoging tov dec 2022 | N3: 2024 convenant
B4: Index naam | C4: Arbeid | D4: Materiaal | E4: Netbeheer | F4: Geen | G4: Geen | I4: Arbeid | J4: 1.172779914 | K4: 1.246 | L4: 1.333 | M4: =L4/K4 -> 1.069823435 | N4: =J4*M4 -> 1.254667436
B5: Index waarde | C5: =N4 -> 1.254667436 | D5: =N5 -> 1.371965899 | E5: 1 | F5: 1 | G5: 1 | I5: Materiaal | J5: 1.399346544 | K5: 1.431 | L5: 1.403 | M5: =L5/K5 -> 0.9804332635 | N5: =J5*M5 -> 1.371965899
C8: Index | D8: kosten excl index | E8: inclusief index
B9: Veiligstellen | C9: 1 | D9: =Veiligstellen -> 110 | E9: =D9*LOOKUP(C9,IndexNummers,IndexWaarden) -> 138.013418
B10: Schadeherstel | C10: 1 | D10: =Schadeherstel -> 180 | E10: 225.8401385
B11: Schadevaststelling | C11: 1 | D11: =Schadevaststelling -> 144 | E11: 180.6721108
B12: Verkeersmaatregelen | C12: 1 | D12: =Verkeersmaatregelen -> 0 | E12: 0
B13: Netbeheerder | C13: 3 | D13: =Netbeheerder -> 0 | E13: 0
B14: Materiaal | C14: 2 | D14: =Materiaal -> 30 | E14: 41.15897696
B15: Overige | C15: 3 | D15: =Overige -> 0 | E15: 0
E17: =SUM(E9:E16) -> 585.6846443
B19: Laatste aanpassing | D19: 2023-02-27

Sheet Output (hidden)
D1: Claim
F2: Claimant naam | H2: =OpClaimant -> 
F3: Claimt namens | H3: =OpNamens -> 
F4: Kenmerk van claimant | H4: =OpKenmerk -> 
F5: Object eigenaar | H5: =INDEX(PartijRange,PartijKeus,) -> Gemeente
F6: Datum schade | H6: =OpDatum -> 00:00:00
F7: Locatie | H7: =OpLocatie -> 0
F9: Activiteit | H9: =INDEX(ActiviteitRange,ActiviteitKeus,) -> Rechtzetten + Armatuur vervangen
D11: Lichtmast | U11: Output Folder
F12: Nummer / kenmerk | H12: =OpNummer -> 0 | U12: Claimant
F13: Hoogte lichtpunt (m) | H13: =INDEX(LengteRange,Lengtekeus,) -> 5 | U13: Namens
F14: Model | H14: =INDEX(MastModelRange,MastModelKeus,) -> Paaltop | U14: Kenmerk
F15: Materiaal | H15: =INDEX(MateriaalRange,MateriaalKeus,) -> Aluminium | U15: Datum
F16: Coating | H16: =INDEX(NeeJaRange,CoatingKeus,) -> Nee | U16: Locatie
F17: Uithouder(s) | H17: =INDEX(UithouderRange,UithouderKeus,) ->  | U17: Nummer
F18: Terugplaatsen vervangen borden | H18: =INDEX(BebordingRange,BebordingKeus,) ->  | U18: ArmatuurMerk
U19: BijzToelichting
D20: Armatuur | U20: BijzPrijs | W20: 0
F21: Merk en type | H21: =OpArmatuurMerk ->  | U21: Electronica
F22: Model categorie | H22: =INDEX(ArmatuurModelRange,ArmatuurModelKeus,) -> Paaltop functioneel
F23: Lichtsoort | H23: =INDEX(LichtsoortRange,LichtsoortKeus,) -> LED
F24: =IF(LichtsoortKeus = 1, "Vermogen (W)","Lichtstroom (lm)") -> Lichtstroom (lm) | H24: =INDEX(VermogenOptieRange,VermogenFinal + 1,) -> 
F25: Aantal vervangen | H25: =IFERROR(INDEX(AantalArmaturenRange,AantalArmaturenKeus,),0) -> 1
D27: Electronica
F28: Soort | H28: =INDEX(ElectronicaRange,ElectronicaKeus,) -> Niet van Toepassing
D30: Opties
F31: Verkeerstechnisch veiligstellen | H31: =INDEX(VeiligstellenRange,VeiligstellenKeus,) -> Niet van toepassing
F32: Af-/aansluiten netbeheerder | H32: =INDEX(AfkoppelenRange,Afkoppelkeus,) ->  | M32: =IF(OpmerkingBORange>"","Zie specificatie en foto in bijlage","") -> 
F33: Netbeheerder | H33: =INDEX(NetbeheerRange,NetbeheerderKeus,) -> 
F34: Inspecteur | H34: =INDEX(InspecteurRange,InspecteurKeus,) -> Niet van toepassing | M34: =IF(OpmerkingVGPRange>"", "Wordt separaat geclaimd","") -> 
F35: Verkeersmaatregelen | H35: =INDEX(VerkeersmaatregelRange,VerkeersmaatregelKeus,) -> Niet van toepassing
F36: WION procedure (KLIC) | H36: =INDEX(WIONRange,WIONKeus,) -> 
F37: Vervuilde grond procedure | H37: =INDEX(VervuildeGrondRange,VervuildeGrondKeus,) -> 
L40: =IF('Stuf voor UI'!$AC$15<>'Stuf voor UI'!$AM$5,"Eigen risico","") -> 
D43: Bijzonderheden | J43: Calculatie
E44: Prijs | H44: =PrijsBijz -> 0 | K44: Veiligstellen | M44: =VeiligstellenInclusief -> 138.013418
E45: Toelichting | K45: Schadeherstel | M45: =SchadeherstelInclusief -> 225.8401385
E46: =OpBijzToelichting -> 0 | K46: Schadevaststelling | M46: =SchadevaststellingInclusief -> 180.6721108
K47: Verkeersmaatregelen | M47: =VerkeersmaatregelenInclusief -> 0
K48: Materiaal | M48: =MateriaalInclusief -> 41.15897696
K49: Netbeheer | M49: =NetbeheerderInclusief -> 0
K50: Overige | M50: =OverigeInclusief -> 0
K51: Totaal | M51: =TotaalInclusief -> 585.6846443
